[Event "Wuerttemberg Rapid Teams 2024"]
[Site "B?blingen, Germany"]
[Date "2024.04.13"]
[Round "8.21"]
[White "Peng, Xiang-Tobias"]
[Black "Strathmann, Sacha"]
[Result "1-0"]
[ECO "B33"]
[WhiteElo "2187"]
[BlackElo "2125"]
[Annotator "RC"]
[PlyCount "83"]
[EventDate "2024.04.13"]
[EventType "team-tourn"]
[SourceTitle "playchess.com"]
[Source "ChessBase"]
[SourceQuality "1"]
[TimeControl "900+5"]

1. e4 {[%emt 0:00:01]} c5 {[%emt 0:00:02]} 2. Nf3 {[%emt 0:00:01]} Nc6 {[%emt 0:00:01]} 3. d4 {[%emt 0:00:01]} cxd4 {[%emt 0:00:01]} 4. Nxd4 {[%emt 0:00:01]} Nf6 {[%emt 0:00:04]} 5. Nc3 {[%emt 0:00:00]} h5 {[%emt 0:00:01]} 6. Be2 {[%emt 0:00:23]} e5 {[%emt 0:00:07]} 7. Nxc6 {[%emt 0:00:05]} bxc6 {[%emt 0:00:04]} 8. Bg5 {[%emt 0:00:10]} h4 {[%emt 0:00:04]} 9. O-O {[%emt 0:00:33]} Be7 {[%emt 0:00:15]} 10. Bc4 {[%emt 0:00:19]} d6 {[%emt 0:00:14]} 11. h3 {[%emt 0:00:05]} Nh5 {[%emt 0:00:44]} 12. Qf3 {[%emt 0:01:38]} f6 {[%emt 0:01:47]} 13. Be3 {[%emt 0:00:02]} g5 {[%emt 0:00:07]} 14. Bxg5 {[%emt 0:00:17]} fxg5 {[%emt 0:00:24]} 15. Bf7+ {[%emt 0:00:01]} Kd7 {[%emt 0:00:02]} 16. Bxh5 {[%emt 0:00:02]} Kc7 {[%emt 0:00:04]} 17. Bg4 {[%emt 0:00:07]} Rb8 {[%emt 0:00:14]} 18. b3 {[%emt 0:00:03]} Rf8 {[%emt 0:00:40]} 19. Qe3 {[%emt 0:00:05]} Kb7 {[%emt 0:00:37]} 20. Bxc8+ {[%emt 0:00:49]} Qxc8 {[%emt 0:00:04]} 21. Qe2 {[%emt 0:00:01]} Rf4 {[%emt 0:00:34]} 22. f3 {[%emt 0:00:02]} Qe6 {[%emt 0:00:05]} 23. Qc4 {[%emt 0:00:41]} d5 {[%emt 0:00:45]} 24. Qd3 {[%emt 0:00:16]} Bc5+ {[%emt 0:00:41]} 25. Kh2 {[%emt 0:00:13]} Rd8 {[%emt 0:00:34]} 26. exd5 {[%emt 0:00:18]} cxd5 {[%emt 0:00:02]} 27. Rad1 {[%emt 0:00:16]} Bb6 {[%emt 0:00:34]} 28. Na4 {[%emt 0:01:01]} e4 {[%emt 0:01:54]} 29. fxe4 {[%emt 0:00:30]} Rxe4 {[%emt 0:00:11]} 30. Nxb6 {[%emt 0:01:25]} axb6 {[%emt 0:00:10]} 31. c4 {[%emt 0:00:21]} Qe5+ {[%emt 0:03:02]} 32. Kh1 {[%emt 0:00:10]} g4 {[%emt 0:00:33]} 33. cxd5 {[%emt 0:01:25]} gxh3 {[%emt 0:00:07]} 34. Qxh3 {[%emt 0:00:12]} Re3 {[%emt 0:00:33]} 35. Qf5 {[%emt 0:01:44]} Qc3 {[%emt 0:01:24]} 36. Rc1 {[%emt 0:01:34]} Qd2 {[%emt 0:00:46]} 37. Qh7+ {[%emt 0:01:23]} Ka6 {[%emt 0:00:06]} 38. Qxh4 {[%emt 0:00:13]} Rxd5 {[%emt 0:00:11]} 39. Qc4+ {[%emt 0:00:09]} b5 {[%emt 0:00:14]} 40. Rf6+ {[%emt 0:00:43]} Ka5 {[%emt 0:00:08]} 41. b4+ {[%emt 0:00:01]} Ka4 {[%emt 0:00:03]} 42. Qb3+ {[%emt 0:00:01]} 1-0

[Event "Wuerttemberg Rapid Teams 2024"]
[Site "B?blingen, Germany"]
[Date "2024.04.13"]
[Round "8.22"]
[White "Baur, Frank"]
[Black "Ramirez Marin, Ivan"]
[Result "1-0"]
[ECO "D27"]
[WhiteElo "2050"]
[BlackElo "2271"]
[Annotator "RC"]
[PlyCount "93"]
[EventDate "2024.04.13"]
[EventType "team-tourn"]
[SourceTitle "playchess.com"]
[Source "ChessBase"]
[SourceQuality "1"]
[TimeControl "900+5"]

1. d4 {[%emt 0:00:17]} d5 {[%emt 0:00:01]} 2. c4 {[%emt 0:00:15]} dxc4 {[%emt 0:00:01]} 3. e3 {[%emt 0:00:01]} Nf6 {[%emt 0:00:01]} 4. Bxc4 {[%emt 0:00:03]} e6 {[%emt 0:00:01]} 5. Nf3 {[%emt 0:00:03]} c5 {[%emt 0:00:01]} 6. O-O {[%emt 0:00:09]} a6 {[%emt 0:00:01]} 7. Nbd2 {[%emt 0:00:38]} cxd4 {[%emt 0:00:11]} 8. Nxd4 {[%emt 0:00:36]} Be7 {[%emt 0:00:15]} 9. b3 {[%emt 0:00:04]} e5 {[%emt 0:00:18]} 10. N4f3 {[%emt 0:00:36]} Nc6 {[%emt 0:00:02]} 11. Bb2 {[%emt 0:00:18]} Bd6 {[%emt 0:00:49]} 12. Ng5 {[%emt 0:00:58]} O-O {[%emt 0:00:21]} 13. Nde4 {[%emt 0:00:28]} Nxe4 {[%emt 0:00:05]} 14. Nxe4 {[%emt 0:00:03]} Be7 {[%emt 0:00:09]} 15. Qxd8 {[%emt 0:00:15]} Rxd8 {[%emt 0:00:06]} 16. Rfd1 {[%emt 0:00:47]} Bf5 {[%emt 0:00:02]} 17. f3 {[%emt 0:01:14]} Nb4 {[%emt 0:02:01]} 18. Kf2 {[%emt 0:04:32]} b5 {[%emt 0:00:31]} 19. Be2 {[%emt 0:00:25]} f6 {[%emt 0:01:38]} 20. a4 {[%emt 0:00:45]} Rac8 {[%emt 0:02:38]} 21. axb5 {[%emt 0:00:27]} axb5 {[%emt 0:01:46]} 22. Rxd8+ {[%emt 0:00:14]} Rxd8 {[%emt 0:00:12]} 23. Bxb5 {[%emt 0:01:10]} Nd3+ {[%emt 0:00:59]} 24. Bxd3 {[%emt 0:00:30]} Rxd3 {[%emt 0:00:04]} 25. Ba3 {[%emt 0:00:18]} Bd8 {[%emt 0:00:44]} 26. Nd6 {[%emt 0:00:54]} Be6 {[%emt 0:00:17]} 27. Bc5 {[%emt 0:00:13]} Kf8 {[%emt 0:03:12]} 28. b4 {[%emt 0:00:21]} Ke7 {[%emt 0:00:36]} 29. Ra7+ {[%emt 0:00:15]} Bd7 {[%emt 0:00:04]} 30. Nf5+ {[%emt 0:00:16]} Ke6 {[%emt 0:00:18]} 31. Nxg7+ {[%emt 0:00:13]} Kf7 {[%emt 0:00:00]} 32. Nf5 {[%emt 0:00:03]} Kg6 {[%emt 0:00:04]} 33. Nd6 {[%emt 0:00:10]} Be6 {[%emt 0:00:10]} 34. e4 {[%emt 0:00:03]} Rb3 {[%emt 0:00:04]} 35. Ne8 {[%emt 0:00:12]} Rb2+ {[%emt 0:00:10]} 36. Kg3 {[%emt 0:00:01]} f5 {[%emt 0:00:03]} 37. Rg7+ {[%emt 0:00:06]} Kh6 {[%emt 0:00:01]} 38. exf5 {[%emt 0:00:08]} Bg5 {[%emt 0:00:08]} 39. fxe6 {[%emt 0:00:04]} e4 {[%emt 0:00:08]} 40. Rxg5 {[%emt 0:00:02]} Kxg5 {[%emt 0:00:02]} 41. fxe4 {[%emt 0:00:06]} Rb3+ {[%emt 0:00:03]} 42. Kf2 {[%emt 0:00:02]} Kf4 {[%emt 0:00:01]} 43. e7 {[%emt 0:00:04]} Rb2+ {[%emt 0:00:01]} 44. Ke1 {[%emt 0:00:02]} Rb1+ {[%emt 0:00:06]} 45. Kd2 {[%emt 0:00:01]} Rb2+ {[%emt 0:00:01]} 46. Kc3 {[%emt 0:00:01]} Rxg2 {[%emt 0:00:02]} 47. Nf6 {[%emt 0:00:04]} 1-0

[Event "Wuerttemberg Rapid Teams 2024"]
[Site "B?blingen, Germany"]
[Date "2024.04.13"]
[Round "8.23"]
[White "Schnepp, Gunnar"]
[Black "Schmid, Tim"]
[Result "1-0"]
[ECO "D26"]
[WhiteElo "2233"]
[BlackElo "1765"]
[Annotator "RC"]
[PlyCount "45"]
[EventDate "2024.04.13"]
[EventType "team-tourn"]
[SourceTitle "playchess.com"]
[Source "ChessBase"]
[SourceQuality "1"]
[TimeControl "900+5"]

1. d4 {[%emt 0:00:01]} Nf6 {[%emt 0:00:02]} 2. c4 {[%emt 0:00:01]} e6 {[%emt 0:00:01]} 3. Nf3 {[%emt 0:00:02]} d5 {[%emt 0:00:02]} 4. e3 {[%emt 0:00:02]} Be7 {[%emt 0:00:15]} 5. Bd3 {[%emt 0:00:37]} O-O {[%emt 0:00:21]} 6. O-O {[%emt 0:00:03]} dxc4 {[%emt 0:00:27]} 7. Bxc4 {[%emt 0:00:02]} a6 {[%emt 0:00:02]} 8. Qe2 {[%emt 0:00:36]} b5 {[%emt 0:00:32]} 9. Bd3 {[%emt 0:00:06]} c5 {[%emt 0:00:27]} 10. dxc5 {[%emt 0:00:12]} Bxc5 {[%emt 0:00:26]} 11. e4 {[%emt 0:00:11]} Qb6 {[%emt 0:00:27]} 12. e5 {[%emt 0:00:11]} Nd5 {[%emt 0:01:24]} 13. Bxh7+ {[%emt 0:00:15]} Kxh7 {[%emt 0:03:29]} 14. Ng5+ {[%emt 0:00:04]} Kg6 {[%emt 0:00:02]} 15. Qe4+ {[%emt 0:01:11]} f5 {[%emt 0:00:07]} 16. Qh4 {[%emt 0:00:02]} Nf6 {[%emt 0:01:27]} 17. exf6 {[%emt 0:00:20]} Kxf6 {[%emt 0:00:23]} 18. Ne4+ {[%emt 0:00:42]} Kf7 {[%emt 0:00:35]} 19. Qh5+ {[%emt 0:00:03]} Ke7 {[%emt 0:00:45]} 20. Bg5+ {[%emt 0:00:13]} Rf6 {[%emt 0:03:51]} 21. Nxc5 {[%emt 0:01:06]} Qxc5 {[%emt 0:00:18]} 22. Qg6 {[%emt 0:00:07]} Kd6 {[%emt 0:01:09]} 23. Qxg7 {[%emt 0:00:20]} 1-0

[Event "Wuerttemberg Rapid Teams 2024"]
[Site "B?blingen, Germany"]
[Date "2024.04.13"]
[Round "8.26"]
[White "Vaysberg, Alexander"]
[Black "Kaufmann, Thorsten"]
[Result "1/2-1/2"]
[ECO "B98"]
[WhiteElo "2152"]
[BlackElo "2057"]
[Annotator "RC"]
[PlyCount "160"]
[EventDate "2024.04.13"]
[EventType "team-tourn"]
[SourceTitle "playchess.com"]
[Source "ChessBase"]
[SourceQuality "1"]
[TimeControl "900+5"]

1. e4 {[%emt 0:00:02]} c5 {[%emt 0:00:01]} 2. Nf3 {[%emt 0:01:02]} d6 {[%emt 0:00:06]} 3. d4 {[%emt 0:00:24]} cxd4 {[%emt 0:00:02]} 4. Nxd4 {[%emt 0:00:02]} Nf6 {[%emt 0:00:02]} 5. Nc3 {[%emt 0:00:02]} a6 {[%emt 0:00:04]} 6. Bg5 {[%emt 0:00:22]} e6 {[%emt 0:00:02]} 7. f4 {[%emt 0:00:03]} Be7 {[%emt 0:00:03]} 8. Qf3 {[%emt 0:00:13]} Qc7 {[%emt 0:00:06]} 9. O-O-O {[%emt 0:00:17]} h6 {[%emt 0:00:24]} 10. Bh4 {[%emt 0:00:28]} Nc6 {[%emt 0:00:02]} 11. Bf2 {[%emt 0:01:05]} Nxd4 {[%emt 0:00:10]} 12. Bxd4 {[%emt 0:00:04]} e5 {[%emt 0:00:02]} 13. fxe5 {[%emt 0:00:32]} dxe5 {[%emt 0:00:02]} 14. Qg3 {[%emt 0:00:02]} Nh5 {[%emt 0:00:17]} 15. Qxe5 {[%emt 0:00:17]} Qxe5 {[%emt 0:00:03]} 16. Bxe5 {[%emt 0:00:02]} O-O {[%emt 0:00:08]} 17. Nd5 {[%emt 0:00:05]} Bg5+ {[%emt 0:00:49]} 18. Kb1 {[%emt 0:00:06]} Bg4 {[%emt 0:00:01]} 19. Re1 {[%emt 0:01:40]} Bd2 {[%emt 0:00:04]} 20. Be2 {[%emt 0:00:02]} Bxe2 {[%emt 0:01:12]} 21. Rxe2 {[%emt 0:00:03]} Bg5 {[%emt 0:00:01]} 22. h4 {[%emt 0:00:51]} Bd8 {[%emt 0:00:07]} 23. g4 {[%emt 0:00:07]} Nf6 {[%emt 0:00:04]} 24. Nxf6+ {[%emt 0:02:45]} Bxf6 {[%emt 0:00:03]} 25. Bxf6 {[%emt 0:01:18]} gxf6 {[%emt 0:00:02]} 26. Rf1 {[%emt 0:00:03]} Kg7 {[%emt 0:00:02]} 27. c3 {[%emt 0:00:04]} Rae8 {[%emt 0:00:02]} 28. Rf5 {[%emt 0:00:23]} Re6 {[%emt 0:00:03]} 29. e5 {[%emt 0:00:44]} fxe5 {[%emt 0:00:06]} 30. Rfxe5 {[%emt 0:00:04]} Rg6 {[%emt 0:00:02]} 31. R2e4 {[%emt 0:00:05]} Rd8 {[%emt 0:00:01]} 32. Kc2 {[%emt 0:00:03]} Rf6 {[%emt 0:00:03]} 33. Re2 {[%emt 0:00:18]} Rf4 {[%emt 0:00:11]} 34. Rg2 {[%emt 0:00:18]} Rd7 {[%emt 0:00:06]} 35. Ree2 {[%emt 0:00:26]} f6 {[%emt 0:00:14]} 36. Ref2 {[%emt 0:00:02]} Re4 {[%emt 0:00:07]} 37. g5 {[%emt 0:00:08]} fxg5 {[%emt 0:00:02]} 38. hxg5 {[%emt 0:00:02]} hxg5 {[%emt 0:00:04]} 39. Rxg5+ {[%emt 0:00:02]} Kh6 {[%emt 0:00:01]} 40. Rg1 {[%emt 0:00:15]} Rh4 {[%emt 0:00:03]} 41. Rd2 {[%emt 0:01:12]} Rc7 {[%emt 0:00:02]} 42. b3 {[%emt 0:00:04]} Rh3 {[%emt 0:00:02]} 43. c4 {[%emt 0:00:24]} b5 {[%emt 0:00:03]} 44. Rg4 {[%emt 0:00:02]} Rc6 {[%emt 0:00:18]} 45. Rgd4 {[%emt 0:00:16]} Kg7 {[%emt 0:00:24]} 46. R4d3 {[%emt 0:00:39]} Rh4 {[%emt 0:00:08]} 47. Rd4 {[%emt 0:00:06]} Rh3 {[%emt 0:00:01]} 48. Kb2 {[%emt 0:00:05]} bxc4 {[%emt 0:00:08]} 49. Rxc4 {[%emt 0:00:03]} Rb6 {[%emt 0:00:02]} 50. Rcd4 {[%emt 0:00:12]} Kf7 {[%emt 0:00:05]} 51. Rd6 {[%emt 0:00:12]} Rh6 {[%emt 0:00:10]} 52. Rxh6 {[%emt 0:00:07]} Rxh6 {[%emt 0:00:02]} 53. Re2 {[%emt 0:00:01]} Rh4 {[%emt 0:00:13]} 54. a3 {[%emt 0:00:06]} Kf6 {[%emt 0:00:04]} 55. b4 {[%emt 0:00:03]} Kf7 {[%emt 0:00:39]} 56. Kb3 {[%emt 0:00:08]} Rh3+ {[%emt 0:00:16]} 57. Ka4 {[%emt 0:00:04]} Rd3 {[%emt 0:00:03]} 58. Rc2 {[%emt 0:00:32]} Rd6 {[%emt 0:00:02]} 59. Rh2 {[%emt 0:00:08]} Ke7 {[%emt 0:00:02]} 60. Rh7+ {[%emt 0:00:04]} Kd8 {[%emt 0:00:01]} 61. Ka5 {[%emt 0:00:04]} Kc8 {[%emt 0:00:05]} 62. Ra7 {[%emt 0:00:10]} Kb8 {[%emt 0:00:07]} 63. Rxa6 {[%emt 0:00:02]} Rd3 {[%emt 0:00:02]} 64. a4 {[%emt 0:00:02]} Kb7 {[%emt 0:00:01]} 65. b5 {[%emt 0:00:03]} Rd4 {[%emt 0:00:04]} 66. Rh6 {[%emt 0:00:03]} Kb8 {[%emt 0:00:08]} 67. Kb6 {[%emt 0:00:04]} Rd8 {[%emt 0:00:04]} 68. a5 {[%emt 0:00:05]} Ka8 {[%emt 0:00:02]} 69. a6 {[%emt 0:00:07]} Kb8 {[%emt 0:00:05]} 70. Ka5 {[%emt 0:00:07]} Ka8 {[%emt 0:00:03]} 71. Rh7 {[%emt 0:00:07]} Kb8 {[%emt 0:00:02]} 72. b6 {[%emt 0:00:05]} Ka8 {[%emt 0:00:01]} 73. Kb5 {[%emt 0:00:03]} Kb8 {[%emt 0:00:03]} 74. Kc6 {[%emt 0:00:05]} Rc8+ {[%emt 0:00:01]} 75. Rc7 {[%emt 0:00:08]} Rh8 {[%emt 0:00:06]} 76. Rd7 {[%emt 0:00:18]} Rh6+ {[%emt 0:00:08]} 77. Rd6 {[%emt 0:00:03]} Rh8 {[%emt 0:00:02]} 78. b7 {[%emt 0:00:09]} Ka7 {[%emt 0:00:04]} 79. Kc7 {[%emt 0:00:08]} Rb8 {[%emt 0:00:01]} 80. Rc6 {[%emt 0:00:06]} Rxb7+ {[%emt 0:12:47]} 1/2-1/2

[Event "Wuerttemberg Rapid Teams 2024"]
[Site "B?blingen, Germany"]
[Date "2024.04.13"]
[Round "8.27"]
[White "Albrecht, Neil"]
[Black "Jerie, Sven"]
[Result "0-1"]
[ECO "B01"]
[WhiteElo "1950"]
[BlackElo "2018"]
[Annotator "RC"]
[PlyCount "125"]
[EventDate "2024.04.13"]
[EventType "team-tourn"]
[SourceTitle "playchess.com"]
[Source "ChessBase"]
[SourceQuality "1"]
[TimeControl "900+5"]

1. e4 {[%emt 0:00:01]} d5 {[%emt 0:00:00]} 2. exd5 {[%emt 0:00:01]} Qxd5 {[%emt 0:00:01]} 3. Nc3 {[%emt 0:00:01]} Qd6 {[%emt 0:00:01]} 4. Nf3 {[%emt 0:00:06]} a6 {[%emt 0:00:02]} 5. a4 {[%emt 0:00:13]} Nf6 {[%emt 0:00:01]} 6. Bc4 {[%emt 0:00:09]} Bg4 {[%emt 0:00:22]} 7. h3 {[%emt 0:00:05]} Bh5 {[%emt 0:00:01]} 8. Be2 {[%emt 0:00:12]} Nc6 {[%emt 0:00:04]} 9. O-O {[%emt 0:00:03]} e5 {[%emt 0:00:08]} 10. d3 {[%emt 0:00:03]} Be7 {[%emt 0:00:02]} 11. Be3 {[%emt 0:00:13]} h6 {[%emt 0:00:07]} 12. Nd2 {[%emt 0:00:02]} Bxe2 {[%emt 0:00:26]} 13. Qxe2 {[%emt 0:00:04]} O-O-O {[%emt 0:01:00]} 14. Nde4 {[%emt 0:00:14]} Nxe4 {[%emt 0:00:05]} 15. Nxe4 {[%emt 0:00:05]} Qd5 {[%emt 0:00:19]} 16. Nc3 {[%emt 0:00:53]} Qd7 {[%emt 0:00:24]} 17. Rab1 {[%emt 0:00:20]} f5 {[%emt 0:00:04]} 18. Na2 {[%emt 0:00:44]} Nd4 {[%emt 0:00:28]} 19. Bxd4 {[%emt 0:00:37]} exd4 {[%emt 0:00:05]} 20. Rfe1 {[%emt 0:00:49]} Rhe8 {[%emt 0:00:20]} 21. Qe6 {[%emt 0:00:25]} Bd6 {[%emt 0:00:05]} 22. Qc4 {[%emt 0:00:36]} Qc6 {[%emt 0:02:02]} 23. Qxc6 {[%emt 0:00:26]} bxc6 {[%emt 0:00:02]} 24. Kf1 {[%emt 0:00:11]} Kb7 {[%emt 0:01:21]} 25. Rxe8 {[%emt 0:00:12]} Rxe8 {[%emt 0:00:01]} 26. Nc1 {[%emt 0:00:32]} c5 {[%emt 0:00:50]} 27. Nb3 {[%emt 0:00:34]} Kc6 {[%emt 0:00:27]} 28. Nd2 {[%emt 0:00:15]} Kd5 {[%emt 0:00:27]} 29. Nc4 {[%emt 0:00:06]} g5 {[%emt 0:00:21]} 30. g3 {[%emt 0:01:11]} f4 {[%emt 0:00:45]} 31. g4 {[%emt 0:00:16]} Re7 {[%emt 0:02:07]} 32. Re1 {[%emt 0:00:30]} Rxe1+ {[%emt 0:00:55]} 33. Kxe1 {[%emt 0:00:03]} Kc6 {[%emt 0:00:42]} 34. Ke2 {[%emt 0:00:05]} Kd5 {[%emt 0:00:05]} 35. Kf3 {[%emt 0:00:04]} Be7 {[%emt 0:00:14]} 36. Nd2 {[%emt 0:00:26]} Bd6 {[%emt 0:00:03]} 37. b3 {[%emt 0:01:16]} Be5 {[%emt 0:00:06]} 38. Ne4 {[%emt 0:00:11]} Kc6 {[%emt 0:00:02]} 39. Nd2 {[%emt 0:00:37]} Kd5 {[%emt 0:00:03]} 40. Nc4 {[%emt 0:00:32]} Bd6 {[%emt 0:00:09]} 41. Kg2 {[%emt 0:00:42]} Kc6 {[%emt 0:00:08]} 42. Nd2 {[%emt 0:01:12]} Be7 {[%emt 0:00:10]} 43. Kf3 {[%emt 0:00:19]} Kd5 {[%emt 0:00:11]} 44. Ne4 {[%emt 0:00:04]} Ke5 {[%emt 0:00:06]} 45. Nd2 {[%emt 0:00:23]} Kd5 {[%emt 0:00:02]} 46. Nc4 {[%emt 0:00:03]} Bf6 {[%emt 0:00:17]} 47. h4 {[%emt 0:00:21]} Be7 {[%emt 0:00:09]} 48. hxg5 {[%emt 0:00:02]} hxg5 {[%emt 0:00:02]} 49. Nd2 {[%emt 0:00:17]} Bf6 {[%emt 0:00:02]} 50. Ne4 {[%emt 0:00:11]} Be7 {[%emt 0:00:01]} 51. Ke2 {[%emt 0:00:04]} Ke5 {[%emt 0:00:04]} 52. f3 {[%emt 0:00:11]} Kd5 {[%emt 0:00:03]} 53. Nd2 {[%emt 0:00:09]} Bf6 {[%emt 0:00:02]} 54. Kd1 {[%emt 0:00:01]} Be7 {[%emt 0:00:09]} 55. Kc1 {[%emt 0:00:09]} Ke5 {[%emt 0:00:10]} 56. Kb2 {[%emt 0:00:17]} Kd5 {[%emt 0:00:06]} 57. Nc4 {[%emt 0:00:26]} Bf8 {[%emt 0:00:07]} 58. Nd2 {[%emt 0:00:06]} Be7 {[%emt 0:00:02]} 59. Ne4 {[%emt 0:00:01]} Ke5 {[%emt 0:00:06]} 60. Nd2 {[%emt 0:00:39]} Kd5 {[%emt 0:00:01]} 61. Ka2 {[%emt 0:00:02]} Bf8 {[%emt 0:00:11]} 62. Nc4 {[%emt 0:00:14]} Be7 {[%emt 0:00:02]} 63. Na5 {[%emt 0:00:17]} 0-1

[Event "Wuerttemberg Rapid Teams 2024"]
[Site "B?blingen, Germany"]
[Date "2024.04.13"]
[Round "8.29"]
[White "Mayr, Florian"]
[Black "Seitz, Patrick"]
[Result "1/2-1/2"]
[ECO "B42"]
[WhiteElo "2077"]
[BlackElo "2125"]
[Annotator "RC"]
[PlyCount "69"]
[EventDate "2024.04.13"]
[EventType "team-tourn"]
[SourceTitle "playchess.com"]
[Source "ChessBase"]
[SourceQuality "1"]
[TimeControl "900+5"]

1. e4 {[%emt 0:00:02]} c5 {[%emt 0:00:02]} 2. Nf3 {[%emt 0:00:01]} e6 {[%emt 0:00:02]} 3. d4 {[%emt 0:00:02]} cxd4 {[%emt 0:00:03]} 4. Nxd4 {[%emt 0:00:01]} a6 {[%emt 0:00:03]} 5. Bd3 {[%emt 0:00:02]} Qc7 {[%emt 0:00:03]} 6. O-O {[%emt 0:00:08]} Nf6 {[%emt 0:00:10]} 7. h3 {[%emt 0:00:20]} b6 {[%emt 0:00:25]} 8. c4 {[%emt 0:00:06]} Bb7 {[%emt 0:00:02]} 9. Nc3 {[%emt 0:00:02]} Nc6 {[%emt 0:00:09]} 10. Nxc6 {[%emt 0:00:47]} dxc6 {[%emt 0:00:19]} 11. Bg5 {[%emt 0:00:30]} Be7 {[%emt 0:00:30]} 12. Qf3 {[%emt 0:00:14]} O-O {[%emt 0:02:51]} 13. Rad1 {[%emt 0:00:02]} Rad8 {[%emt 0:00:16]} 14. Bc2 {[%emt 0:00:21]} e5 {[%emt 0:00:13]} 15. a3 {[%emt 0:00:32]} Rxd1 {[%emt 0:00:24]} 16. Rxd1 {[%emt 0:00:01]} Ne8 {[%emt 0:00:08]} 17. Be3 {[%emt 0:00:18]} Nd6 {[%emt 0:00:17]} 18. b3 {[%emt 0:00:27]} b5 {[%emt 0:01:06]} 19. c5 {[%emt 0:00:13]} Ne8 {[%emt 0:00:02]} 20. b4 {[%emt 0:00:01]} Bc8 {[%emt 0:00:04]} 21. Bb3 {[%emt 0:00:43]} Kh8 {[%emt 0:00:31]} 22. a4 {[%emt 0:01:10]} f5 {[%emt 0:00:17]} 23. exf5 {[%emt 0:00:02]} Bxf5 {[%emt 0:00:09]} 24. Qg3 {[%emt 0:00:01]} Bf6 {[%emt 0:00:30]} 25. a5 {[%emt 0:00:21]} Qe7 {[%emt 0:00:07]} 26. Qf3 {[%emt 0:00:33]} e4 {[%emt 0:00:55]} 27. Qxf5 {[%emt 0:00:01]} Bxc3 {[%emt 0:00:02]} 28. Qc8 {[%emt 0:00:02]} Bxb4 {[%emt 0:00:13]} 29. Qxc6 {[%emt 0:00:01]} Bxa5 {[%emt 0:01:00]} 30. Rd7 {[%emt 0:00:42]} Qe5 {[%emt 0:00:46]} 31. Bd4 {[%emt 0:00:27]} Qf4 {[%emt 0:00:39]} 32. Re7 {[%emt 0:03:43]} Be1 {[%emt 0:00:33]} 33. Rxe8 {[%emt 0:05:06]} Bxf2+ {[%emt 0:00:08]} 34. Bxf2 {[%emt 0:00:01]} Qxf2+ {[%emt 0:00:03]} 35. Kh2 {[%emt 0:00:01]} 1/2-1/2

[Event "Wuerttemberg Rapid Teams 2024"]
[Site "B?blingen, Germany"]
[Date "2024.04.13"]
[Round "8.30"]
[White "Eitel, Lukas"]
[Black "Narr, Kevin"]
[Result "0-1"]
[ECO "D05"]
[WhiteElo "1825"]
[BlackElo "1977"]
[Annotator "TA"]
[PlyCount "62"]
[EventDate "2024.04.13"]
[EventType "team-tourn"]
[SourceTitle "playchess.com"]
[Source "ChessBase"]
[SourceQuality "1"]
[TimeControl "900+5"]

{[%evp 10,62,1,2,4,-3,0,0,9,13,14,0,0,3,6,-24,-17,-24,-20,-32,0,0,9,-49,0,0,0,0,0,-7,0,-75,-50,-65,-70,-72,-68,-93,-65,-102,-29,-25,-30,-405,-397,-397,-395,-398,-398,-2694,-3167,-6419,-6049,-2104,-2101]} 1. d4 {[%emt 0:00:02]} e6 {[%emt 0:00:02]} 2. Nf3 {[%emt 0:00:03]} Nf6 {[%emt 0:00:02]} 3. e3 {[%emt 0:00:02]} b6 {[%emt 0:00:07]} 4. Bd3 {[%emt 0:00:04]} Bb7 {[%emt 0:00:02]} 5. Nbd2 {[%emt 0:00:04]} d5 {[%emt 0:00:01]} 6. b3 {[%emt 0:00:02]} Ne4 {[%emt 0:00:29]} 7. Bb2 {[%emt 0:00:09] Inhibits Nc3.} Nd7 {[%emt 0:00:55]} 8. c4 {[%emt 0:00:25]} f5 {[%emt 0:00:34] The position is equal.} 9. O-O {[%emt 0:00:36]} Bd6 {[%emt 0:00:03]} 10. Ne5 {[%emt 0:00:40]} Nxe5 {[%emt 0:00:01]} 11. dxe5 {[%emt 0:00:05]} Bb4 {[%emt 0:00:21]} 12. Nxe4 {[%emt 0:01:01]} dxe4 {[%emt 0:00:01]} 13. Be2 {[%emt 0:00:28]} a5 {[%emt 0:00:36]} 14. a3 {[%emt 0:00:30]} Bc5 {[%emt 0:00:00]} 15. Qxd8+ {[%emt 0:00:34]} Rxd8 {[%emt 0:00:01]} 16. Rfd1 {[%emt 0:00:22] Dodges Rd2} (16. Bc3 $11) 16... Kf7 {[%emt 0:01:19]} (16... Rxd1+ $15 17. Bxd1 Kf7) 17. Bc3 $11 {[%emt 0:00:57]} Be7 {[%emt 0:00:24]} 18. b4 {[%emt 0:00:39]} Rxd1+ {[%emt 0:00:47]} 19. Rxd1 {[%emt 0:00:03]} axb4 {[%emt 0:00:04]} 20. Bxb4 {[%emt 0:00:43]} (20. axb4 $11 Ra8 21. Rd7) 20... Bc6 {[%emt 0:01:20]} 21. Rc1 {[%emt 0:01:13]} Ra8 {[%emt 0:03:07]} 22. Kf1 {[%emt 0:01:55]} Ke8 {[%emt 0:00:22]} 23. Bd1 {[%emt 0:01:28]} Kd7 {[%emt 0:00:59]} 24. Bb3 {[%emt 0:00:14]} Bxb4 {[%emt 0:00:49]} (24... Ba4 $17 25. Bxa4+ Rxa4 26. Bxe7 Kxe7) 25. axb4 $17 {[%emt 0:00:06][%mdl 4096] Endgame. KRB-KRB} Ra3 {[%emt 0:00:01]} 26. Rc3 {[%emt 0:00:30][%mdl 8192] [#] This move loses the game for White.} (26. Bd1 $11) 26... b5 $1 $19 {[%emt 0:00:19]} 27. cxb5 {[%emt 0:03:48]} Bd5 {[%emt 0:00:01]} (27... Bxb5+ 28. Ke1 Ra1+ 29. Kd2 $17) 28. Bxd5 {[%emt 0:00:04]} Rxc3 {[%emt 0:00:00]} 29. Bc6+ $2 {[%emt 0:00:10]} (29. Bb7) 29... Rxc6 {[%emt 0:00:09] Black is clearly winning.} 30. bxc6+ {[%emt 0:00:05]} Kxc6 {[%emt 0:00:01]} 31. Ke2 {[%emt 0:00:03]} Kb5 {[%emt 0:00:15] Weighted Error Value: White=0.70/Black=0.11 (very precise) .  Loses game:     	White=1     	---        Mistake:       	White=3     	Black=2      Inaccurate:     	White=2     	Black=2      OK:         	White=7     	Black=7      Best:        	---       	Black=1      Strong:       	---       	Black=1} 0-1